bitfinex/quotes_ETHUSD_20250217
["timestamp","ask_amount","ask_price","bid_price","bid_amount"]
[1739768485570,1.00369353,2666.2,2665.7,3.75128]
[1739768485783,1.00369353,2666.2,2665.8,3.75117]
[1739768485992,0.53042035,2666.1,2665.7,3.75128]
[1739768486304,0.53042035,2666.1,2665.5,3.75155]
[1739768486506,0.2342036,2666.0,2665.5,3.7515]
[1739768486828,3.9852136,2666.0,2665.5,3.7515]
[1739768487302,0.2342036,2666.0,2665.7,3.75132]
[1739768487506,0.2342036,2666.0,2665.9,3.75107]
[1739768487681,1.20162599,2666.0,2665.7,3.75128]
[1739768487882,1.20162599,2666.0,2665.7,3.75126]
[1739768488093,1.20162599,2666.0,2665.9,3.75107]
[1739768488666,1.20162599,2666.0,2665.6,0.8038]
[1739768488667,1.20162599,2666.0,2665.6,3.75142]
[1739768489098,1.20162599,2666.0,2665.5,3.75159]
[1739768489403,0.70720463,2665.9,2665.7,3.75134]
[1739768489611,0.70720463,2665.9,2665.8,3.75121]
[1739768489792,0.23400886,2665.8,2665.7,3.75134]
[1739768489997,0.70720463,2665.9,2665.7,3.75134]
[1739768490329,0.23400886,2665.8,2665.7,3.75134]
[1739768490690,0.23400886,2665.8,2665.6,3.75148]
[1739768490999,0.23400886,2665.8,2665.6,3.75142]
[1739768491194,0.23400886,2665.8,2665.6,3.75138]
[1739768491910,0.23400886,2665.8,2665.5,3.75152]
[1739768492115,0.73123021,2665.8,2665.6,3.75149]
[1739768492413,0.23400886,2665.8,2665.6,3.75149]
[1739768494686,0.23400886,2665.8,2665.6,7.50291]
[1739768494890,0.23400886,2665.8,2665.6,3.75142]
[1739768495316,0.23400886,2665.8,2665.5,3.75163]
[1739768496126,0.7711,2665.7,2665.4,3.75168]
[1739768496496,0.2341613,2665.6,2665.4,3.75168]
[1739768496697,0.2341613,2665.6,2665.3,0.56311213]
[1739768496698,0.2341613,2665.6,2665.3,4.31496213]
[1739768496939,0.70980943,2665.6,2665.3,0.56311213]
[1739768497214,0.7711,2665.4,2665.3,0.56311213]
[1739768497627,1.00510886,2665.4,2665.3,0.56311213]
[1739768502619,1.55510886,2665.4,2665.3,0.56311213]
[1739768502831,3.55510886,2665.4,2665.3,0.56311213]
[1739768503039,8.61911456,2665.4,2665.3,0.56311213]
[1739768504721,0.7685,2664.8,2664.5,3.75303]
[1739768504887,0.279,2664.7,2664.5,3.75303]
[1739768505092,1.20565766,2664.7,2664.5,3.75303]
[1739768505345,1.20565766,2664.7,2664.6,3.7529]
[1739768505544,1.20565766,2664.7,2664.5,3.75303]
[1739768505545,1.20565766,2664.7,2664.3,3.75327]
[1739768505744,1.20565766,2664.7,2664.4,3.75313]
[1739768506098,1.20565766,2664.7,2664.3,3.75325]
[1739768506303,0.73141577,2664.6,2664.2,3.75339]
[1739768506534,0.23272125,2664.5,2664.2,7.50678]
[1739768506741,0.23272125,2664.5,2664.2,3.75339]
[1739768507231,0.23272125,2664.5,2664.3,3.75333]
[1739768507657,0.23272125,2664.5,2664.1,0.1570532]
[1739768507848,0.62640995,2664.5,2664.2,3.75338]
[1739768508311,0.62640995,2664.5,2664.1,0.1570532]
[1739768508312,0.62640995,2664.5,2664.4,3.75319]
[1739768508511,0.62640995,2664.5,2664.3,3.75333]
[1739768508931,0.62640995,2664.5,2664.3,3.75325]
[1739768509130,0.62640995,2664.5,2664.4,3.75319]
[1739768509638,5.96640995,2664.5,2664.4,3.75319]
[1739768510737,5.96640995,2664.5,2664.1,3.9105632]
[1739768510738,6.51640995,2664.5,2664.1,3.9105632]
[1739768510909,6.51640995,2664.5,2664.3,3.75333]
[1739768510910,1.27478257,2664.4,2664.3,3.75333]
[1739768511316,0.95750382,2664.4,2664.3,3.75333]
[1739768511522,0.23272125,2664.4,2664.3,3.75333]
[1739768511846,0.51072125,2664.4,2664.3,3.75333]
[1739768512020,0.51072125,2664.4,2664.3,4.53053]
[1739768512923,0.23272125,2664.4,2664.3,4.53053]
[1739768513119,0.23272125,2664.4,2664.3,7.53053]
[1739768513320,0.278,2665.0,2664.3,5.28390067]
[1739768513525,0.278,2665.0,2664.9,3.75248]
[1739768514381,0.278,2665.0,2664.9,3.7626499]
[1739768515050,5.618,2665.2,2665.1,3.7522]
[1739768515265,5.618,2665.2,2665.1,0.0101699]
[1739768515465,6.168,2665.2,2665.1,0.0101699]
[1739768515645,8.280143,2665.2,2665.1,0.0101699]
[1739768516279,7.730143,2665.2,2665.1,3.7623699]
[1739768517575,7.452143,2665.2,2665.1,3.7623699]
[1739768517765,7.730143,2665.2,2665.1,3.7623699]
[1739768518343,5.618,2665.2,2665.1,3.7623699]
[1739768519181,6.3756,2665.2,2665.1,3.7623699]
[1739768519983,5.618,2665.2,2665.1,3.7623699]
[1739768520651,8.433,2665.4,2665.3,3.75192]
[1739768520981,8.433,2665.4,2665.3,4.51712]
[1739768521362,8.433,2665.4,2665.3,4.5272899]
[1739768522087,0.278,2665.6,2665.5,3.75164]
[1739768522382,0.828,2665.6,2665.5,0.0101699]
[1739768522588,0.6158,2665.6,2665.5,3.7618099]
[1739768522781,0.278,2665.6,2665.5,3.7618099]
[1739768522982,5.34,2665.9,2665.8,3.75121]
[1739768523157,5.34,2666.0,2665.8,3.75121]
[1739768523346,0.60976,2666.0,2665.9,3.75107]
[1739768523553,5.75168,2665.5,2664.3,0.7652]
[1739768523778,5.75168,2665.5,2664.7,3.75267]
[1739768523779,6.53174592,2665.4,2664.7,3.75267]
[1739768523961,5.05946,2665.4,2664.8,3.75255]
[1739768524171,1.3076,2665.4,2664.7,3.75267]
[1739768524378,0.705926,2665.3,2664.3,0.7652]
[1739768524562,0.7576,2665.4,2664.9,3.75236]
[1739768524763,0.7576,2665.4,2664.3,4.39115345]
[1739768524764,0.278,2665.3,2665.1,3.75212]
[1739768524983,0.278,2665.3,2665.2,3.75206]
[1739768525961,0.278,2665.3,2665.1,3.75212]
[1739768526174,0.278,2665.3,2664.7,4.51785]
[1739768526175,0.7576,2665.6,2665.4,3.75178]
[1739768526375,0.60776,2665.6,2665.5,3.75164]
[1739768526590,0.277,2665.6,2665.5,3.75164]
[1739768526792,0.277,2665.6,2665.4,3.75166]
[1739768527204,0.277,2665.6,2665.4,7.50335]
[1739768527406,0.277,2665.6,2665.4,3.75166]
[1739768527705,0.277,2665.6,2665.2,3.75196]
[1739768528269,0.277,2665.6,2665.1,3.75211]
[1739768528270,2.55,2665.5,2665.1,3.75211]
[1739768528582,1.0403,2665.4,2665.0,3.75227]
[1739768528798,1.0403,2665.4,2665.1,3.75218]
[1739768529002,1.0403,2665.4,2665.0,3.75227]
[1739768529203,0.55,2665.3,2664.8,7.50509]
[1739768529388,9.642,2665.3,2664.8,3.75253]
[1739768529583,1.44341,2665.2,2664.8,3.75253]
[1739768529785,0.23317032,2665.1,2664.8,3.75253]
[1739768529996,0.55,2665.0,2664.6,3.75281]
[1739768530222,0.7576,2664.9,2664.6,3.75281]
[1739768530428,0.277,2664.8,2664.6,3.75281]
[1739768530626,0.277,2664.8,2664.7,3.75276]
[1739768531010,0.5099585,2664.8,2664.7,3.75276]
[1739768532251,0.5099585,2664.8,2664.6,3.75281]
[1739768532727,1.34259585,2664.7,2664.4,3.75308]
[1739768532926,1.34259585,2664.7,2664.5,3.75301]
[1739768533091,0.23284835,2664.6,2664.5,3.75301]
[1739768535850,0.277,2664.8,2664.4,3.75308]
[1739768535998,0.827,2664.8,2664.7,3.75276]
[1739768536229,1.52169,2664.8,2664.7,3.75276]
[1739768536635,1.52169,2664.8,2664.6,7.5057]
[1739768537183,1.52169,2664.8,2664.7,3.75276]
[1739768537869,0.55,2664.7,2664.5,3.75304]
[1739768538031,0.902169,2664.6,2664.5,3.75304]
[1739768538782,0.902169,2664.6,2664.3,3.75326]
[1739768539080,0.902169,2664.6,2664.3,3.75325]
[1739768539433,0.7799,2664.5,2664.3,7.50651]
[1739768539676,0.7799,2664.5,2664.3,3.75325]
[1739768540592,8.6633839,2664.5,2664.1,3.9003933]
[1739768540792,0.55,2664.4,2664.1,3.9003933]
[1739768540950,0.55,2664.4,2664.1,7.6539333]
[1739768541302,0.55,2664.4,2664.1,0.1468833]
[1739768541503,2.55,2664.2,2664.1,0.1468833]
[1739768541797,9.300226,2664.2,2664.1,0.1468833]
[1739768543444,15.308696,2664.2,2664.1,0.1468833]
[1739768544946,19.73460166,2664.2,2664.1,3.3e-06]
[1739768545151,29.13460166,2664.2,2664.1,3.3e-06]
[1739768545665,29.51040166,2664.2,2664.1,3.3e-06]
[1739768545861,29.13460166,2664.2,2664.1,3.3e-06]
[1739768547353,2.0,2663.1,2662.6,0.7912]
[1739768547667,3.75558,2662.7,2662.6,0.7912]
[1739768547879,3.75558,2662.7,2662.3,0.7912]
[1739768548351,0.2311358,2662.6,2662.3,0.7912]
[1739768548765,0.55,2662.9,2662.3,3.7912]
[1739768548968,0.2311358,2662.5,2662.3,3.7912]
[1739768549151,5.34,2662.8,2662.5,3.75579]
[1739768549351,5.34,2662.8,2662.3,4.54727]
[1739768549575,0.7616,2662.7,2662.1,0.005]
[1739768549750,4.14172,2662.7,2662.1,3.76141]
[1739768550151,5.3803,2662.5,2662.1,0.005]
[1739768551053,3.38049,2662.4,2662.1,0.005]
[1739768551315,5.93066,2662.2,2662.1,0.005]
[1739768551518,8.490386,2662.2,2662.1,0.005]
[1739768551764,9.106613,2662.2,2662.1,0.005]
[1739768551940,9.384613,2662.2,2662.1,0.005]
[1739768552144,8.490386,2662.2,2662.1,0.005]
[1739768552353,4.831726,2662.2,2662.1,0.005]
[1739768552563,6.97026,2662.2,2662.1,0.005]
[1739768553055,2.7616,2662.2,2662.1,0.005]
[1739768553215,2.278,2662.2,2662.1,0.005]
[1739768553553,6.97026,2662.2,2662.1,0.005]
[1739768554453,6.69315,2661.5,2661.4,0.1468833]
[1739768554661,5.38269,2660.6,2660.5,0.11587253]
[1739768554857,2.0,2660.6,2660.5,0.06587253]
[1739768555157,2.0,2661.6,2660.7,0.7878]
[1739768555360,2.0,2661.9,2660.7,11.17214345]
[1739768555658,3.38216,2661.1,2660.8,1.12097189]
[1739768555957,2.0,2661.3,2660.5,0.06587253]
[1739768556130,2.0,2661.7,2660.6,7.54635]
[1739768556322,2.0,2661.4,2660.8,3.62595345]
[1739768556523,3.38188,2661.3,2660.8,3.62595345]
[1739768556733,3.38211,2661.1,2660.6,0.7878]
[1739768556962,3.38256,2660.7,2660.5,0.06587253]
[1739768557263,3.66269,2660.6,2660.5,0.06587253]
[1739768557759,3.88097164,2660.6,2660.5,0.06587253]
[1739768557959,0.49828164,2660.6,2660.5,0.06587253]
[1739768558258,6.64857164,2660.6,2660.5,0.06587253]
[1739768558459,6.5518288,2660.6,2660.5,0.06587253]
[1739768559057,7.8634288,2660.6,2660.5,2.53e-06]
[1739768559357,7.8634288,2660.6,2660.0,21.0]
[1739768559358,9.14493,2660.1,2660.0,5.87335991]
[1739768559559,3.38473,2659.0,2658.7,0.1468833]
[1739768559769,2.7616,2659.1,2658.7,0.1468833]
[1739768559918,0.21828164,2658.9,2658.8,3.76109]
[1739768560118,0.287,2659.2,2658.7,0.1468833]
[1739768560357,0.21828164,2658.9,2658.7,0.1468833]
[1739768560555,2.0,2659.0,2658.7,0.1468833]
[1739768560757,0.21828164,2658.8,2658.7,0.1468833]
[1739768561058,0.287,2658.9,2658.7,0.1468833]
[1739768561272,0.21828164,2658.8,2658.7,0.1468833]
[1739768561620,4.15326164,2658.8,2658.7,0.1468833]
[1739768561826,4.91486164,2658.8,2658.7,0.1468833]
[1739768562024,7.91486164,2658.8,2658.7,0.1468833]
[1739768562440,17.33386164,2658.8,2658.7,0.1468833]
[1739768562647,7.91486164,2658.8,2658.7,0.1468833]
[1739768562959,0.21828164,2658.8,2658.7,8.14307008]
[1739768563163,0.21828164,2658.8,2658.7,8.95737709]
[1739768563370,2.0,2659.2,2658.7,5.19614709]
[1739768563537,0.21283416,2658.8,2658.7,0.1468833]
[1739768563740,2.0,2658.8,2658.7,0.1468833]
[1739768563958,3.81962058,2658.8,2658.7,0.1468833]
[1739768565856,16.23862058,2658.8,2658.7,0.1468833]
[1739768566074,6.81962058,2658.8,2658.7,0.1468833]
[1739768566446,4.81962058,2658.8,2658.7,0.1468833]
[1739768566956,16.23862058,2658.8,2658.7,0.1468833]
[1739768567179,16.33862058,2658.8,2658.7,0.1468833]
[1739768567480,16.84580131,2658.8,2658.7,0.1468833]
[1739768567689,2.55,2657.2,2657.1,0.005]
[1739768567902,2.0,2658.0,2657.2,0.7834]
[1739768568078,0.293,2658.2,2657.2,0.7834]
[1739768568392,0.55,2657.9,2657.3,0.50233568]
[1739768568552,2.0,2657.6,2657.2,0.7834]
[1739768568756,2.55,2657.3,2657.2,0.7834]
[1739768568972,0.55,2657.2,2657.1,0.005]
[1739768569152,2.0,2657.3,2657.1,0.005]
[1739768569684,0.55,2657.2,2657.1,0.005]
[1739768569856,0.295,2657.9,2657.2,0.7834]
[1739768570057,0.295,2657.9,2657.2,1.28573568]
[1739768571156,0.295,2657.9,2657.3,4.23495678]
[1739768571365,0.295,2657.9,2657.2,1.28573568]
[1739768571683,0.55,2658.0,2657.2,1.28573568]
[1739768571847,0.296,2657.9,2657.2,1.28573568]
[1739768572406,2.55,2657.8,2657.2,0.7834]
[1739768572564,0.55,2657.4,2657.1,0.005]
[1739768573086,2.0,2657.9,2657.2,0.7834]
[1739768573286,2.0,2657.6,2657.2,0.7834]
[1739768573450,0.847,2657.5,2657.2,0.7834]
[1739768574379,0.297,2657.5,2657.2,0.7834]
[1739768574788,0.20424155,2657.4,2657.2,0.7834]
[1739768575384,0.50024155,2657.4,2657.2,0.7834]
[1739768576053,0.50024155,2657.4,2657.1,0.005]
[1739768576572,2.0,2657.2,2657.1,0.005]
[1739768576775,2.55,2657.2,2657.1,0.005]
[1739768577086,2.75408708,2657.2,2657.1,0.005]
[1739768580255,2.20408708,2657.2,2657.1,0.005]
[1739768582185,0.20408708,2657.2,2657.1,0.005]
[1739768582393,0.20408708,2657.2,2657.1,0.8259]
[1739768582618,0.295,2657.7,2657.1,5.06085678]
[1739768582761,2.0,2658.2,2657.4,4.23495678]
[1739768582967,0.20352062,2657.6,2657.2,1.32698568]
[1739768583167,0.55,2657.7,2657.2,0.8209]
[1739768583405,0.20389824,2657.5,2657.2,0.8209]
[1739768583602,0.55,2657.7,2657.2,0.8209]
[1739768583791,0.20389824,2657.4,2657.2,0.8209]
[1739768584101,0.20386392,2657.3,2657.2,0.8209]
[1739768584301,2.0,2657.3,2657.1,0.005]
[1739768584471,0.296,2657.2,2657.1,0.005]
[1739768584793,0.49985534,2657.2,2657.1,0.005]
[1739768586088,3.04985534,2657.2,2657.1,0.005]
[1739768586777,2.20385534,2657.2,2657.1,0.005]
[1739768587168,2.75385534,2657.2,2657.1,0.005]
[1739768587469,6.57265534,2657.2,2657.1,0.005]
[1739768587664,2.0,2656.5,2656.0,0.1468833]
[1739768587868,2.0,2656.5,2654.0,8.87]
[1739768587869,0.3758,2655.9,2654.0,8.87]
[1739768588069,0.8188,2656.0,2653.1,0.00505051]
[1739768588070,0.3758,2654.3,2653.1,0.00505051]
[1739768588384,0.4758,2652.9,2651.5,0.18646076]
[1739768588582,0.2,2650.6,2650.4,0.19096464]
[1739768588887,0.2,2650.4,2649.0,0.04277816]
[1739768589065,2.0,2650.4,2649.2,0.7804]
[1739768589264,2.0,2650.4,2649.0,0.00505051]
[1739768589265,2.0,2649.5,2649.0,0.00505051]
[1739768589507,0.50771413,2649.4,2649.0,0.00505051]
[1739768589674,0.98561722,2650.6,2648.9,4.23495678]
[1739768589876,61.46,2659.5,2650.1,4.23495678]
[1739768589877,0.16677027,2650.5,2650.1,4.23495678]
[1739768590085,0.35431305,2650.2,2650.1,0.00505051]
[1739768590287,0.1,2650.2,2648.4,0.00505051]
[1739768590635,0.2,2652.1,2648.2,0.01]
[1739768590636,0.19494949,2650.0,2648.5,0.18982948]
[1739768590904,0.19494949,2651.3,2649.8,5.01815376]
[1739768591204,0.1,2651.7,2649.7,0.2]
[1739768591360,0.59201055,2653.3,2649.9,0.2]
[1739768591361,0.1,2651.2,2649.9,0.2]
[1739768591566,0.0686915,2651.3,2649.4,0.2]
[1739768591762,0.1,2650.5,2649.1,0.2]
[1739768592001,2.0,2651.1,2649.3,0.2]
[1739768592202,11.39542323,2649.9,2649.7,0.7804]
[1739768592404,3.9636589,2649.9,2648.2,0.01]
[1739768592565,0.7804,2649.7,2647.5,0.03774052]
[1739768592767,0.15743589,2649.8,2648.6,0.1]
[1739768593095,2.0,2647.8,2647.3,0.7804]
[1739768593600,2.0,2648.5,2647.3,0.9804]
[1739768593801,0.15743589,2647.7,2647.3,0.9804]
[1739768594008,0.5,2649.4,2647.3,0.9804]
[1739768594203,2.0,2648.9,2647.3,0.7804]
[1739768594504,2.0,2648.7,2647.3,0.7804]
[1739768594875,2.0,2649.3,2647.3,0.7804]
[1739768595072,2.15511807,2648.6,2647.3,0.7804]
[1739768595272,2.0,2648.3,2647.3,0.7804]
[1739768595489,2.0,2649.3,2647.3,0.7804]
[1739768595685,2.0,2648.5,2647.1,0.005]
[1739768595885,3.76093318,2647.5,2647.1,0.005]
[1739768596357,0.15240911,2647.4,2646.3,3.05196685]
[1739768596612,0.1,2646.9,2645.4,0.291075]
[1739768596809,0.15240911,2647.4,2645.2,0.1582011]
[1739768596810,0.1,2645.5,2645.2,0.1582011]
[1739768597114,0.1,2645.5,2641.9,8.87]
[1739768597115,0.2,2642.4,2640.9,8.25737983]
[1739768597412,0.1,2642.7,2642.6,3.78415]
[1739768597614,0.03792665,2643.3,2641.6,5.01815376]
[1739768597910,0.03792665,2643.3,2640.0,2.04804766]
[1739768597911,0.14794975,2643.2,2641.2,5.01815376]
[1739768598113,0.34794975,2643.2,2641.9,0.03784229]
[1739768598310,0.7652,2644.1,2641.8,0.30256914]
[1739768598511,0.1,2642.9,2641.8,0.06669274]
[1739768598674,0.03792665,2643.9,2642.7,3.684]
[1739768598675,0.0141236,2643.6,2642.7,3.684]
[1739768598879,0.13738226,2643.5,2643.4,3.783]
[1739768599117,0.13247575,2643.5,2641.8,0.06669274]
[1739768599287,0.584,2644.9,2642.0,0.8156]
[1739768599611,0.584,2644.9,2644.4,3.78155]
[1739768599612,2.0,2644.6,2644.4,3.78155]
[1739768599812,0.12774468,2644.8,2644.4,3.78155]
[1739768600026,2.1,2645.5,2644.9,3.78079]
[1739768600311,2.1,2645.5,2643.8,3.7824]
[1739768600485,3.0,2644.8,2643.3,0.8156]
[1739768600701,2.0,2645.1,2644.1,3.78198]
[1739768600998,0.1,2645.5,2644.9,3.78084]
[1739768601430,0.1,2645.5,2645.4,3.78014]
[1739768602229,1e-05,2645.5,2645.4,3.78014]
[1739768603019,0.589,2647.4,2645.3,3.78028]
[1739768603336,0.589,2647.4,2645.4,0.03699518]
[1739768603496,0.589,2647.4,2647.3,3.77743]
[1739768603692,12.02947944,2648.2,2647.1,3.77771]
[1739768603901,2.0,2648.1,2645.6,3.77983]
[1739768604106,2.0,2648.1,2647.0,3.77785]
[1739768604307,12.02947944,2648.2,2647.3,3.77741]
[1739768604508,12.02947944,2648.2,2646.0,0.03778189]
[1739768604509,0.7652,2648.2,2647.7,3.77675]
[1739768605208,0.7652,2648.2,2647.8,3.7767]
[1739768605444,0.005,2648.4,2647.8,3.7767]
[1739768605745,2.0,2648.3,2645.9,3.77935]
[1739768605907,0.12939488,2648.3,2647.5,3.77709]
[1739768606307,0.12939488,2648.3,2647.7,3.77678]
[1739768606706,0.12939488,2648.3,2647.6,3.77697]
[1739768606905,0.12939488,2648.3,2647.0,4.59343]
[1739768606906,0.12939488,2648.3,2647.0,0.8156]
[1739768607138,0.12939488,2648.3,2648.2,3.77614]
[1739768607842,0.005,2648.4,2648.3,3.776]
[1739768608335,3.02093,2648.2,2647.0,0.8156]
[1739768608532,3.02168,2647.6,2647.0,0.8156]
[1739768608719,0.005,2648.4,2646.3,0.7839]
[1739768608923,0.13115214,2647.5,2646.8,3.77808]
[1739768609150,3.39946,2647.5,2646.5,3.77851]
[1739768609310,0.13115214,2647.4,2646.9,3.77791]
[1739768609504,3.0,2648.1,2646.3,0.7839]
[1739768609748,0.12646304,2647.3,2646.3,0.7839]
[1739768610043,0.005,2648.4,2647.7,3.77684]
[1739768610346,0.005,2648.4,2646.3,0.7839]
[1739768610558,3.3993,2647.7,2646.3,0.7839]
[1739768610735,3.0,2648.2,2646.6,3.77835]
[1739768610911,3.39991,2647.2,2646.3,4.56275]
[1739768611106,3.0,2647.0,2646.1,3.77907]
[1739768611346,3.0,2647.3,2646.1,3.77902]
[1739768611646,3.40033,2646.8,2645.9,3.7794]
[1739768611846,3.0,2647.5,2646.1,3.77902]
[1739768612048,3.0,2646.5,2645.0,0.7839]
[1739768612222,0.578,2646.8,2645.0,1.2781934]
[1739768612547,0.578,2646.8,2645.0,0.7839]
[1739768612748,0.1201088,2646.7,2646.3,3.77872]
[1739768612919,0.1201088,2646.7,2645.1,3.78057]
[1739768613122,0.1201088,2646.7,2645.3,3.78028]
[1739768613346,0.576,2647.3,2645.4,0.03778991]
[1739768613511,0.1201088,2646.6,2646.1,3.77914]
[1739768613705,0.576,2647.3,2645.1,3.78057]
[1739768613918,0.1201088,2647.2,2645.3,3.78028]
[1739768614140,0.1201088,2647.2,2645.2,0.456447]
[1739768614141,0.1201088,2647.2,2646.3,0.55]
[1739768614340,0.1201088,2647.2,2647.0,0.55]
[1739768614542,3.0,2647.3,2647.0,0.55]
[1739768614745,0.1201088,2647.1,2646.7,0.55]
[1739768614945,3.0,2647.6,2646.7,0.55]
[1739768615162,0.1201088,2647.0,2646.3,3.77883]
[1739768615366,3.40011,2647.0,2645.2,0.456447]
[1739768615517,0.1201088,2646.9,2646.3,0.55]
[1739768615714,3.40067,2646.6,2645.2,0.456447]
[1739768615936,6.40011,2647.0,2645.2,0.456447]
[1739768616138,0.1201088,2646.5,2645.0,0.7839]
[1739768616338,3.40071,2646.5,2645.0,0.7839]
[1739768616538,3.40071,2646.5,2644.5,3.78138]
[1739768616539,3.40231,2645.3,2644.5,3.78138]
[1739768616812,3.40164,2645.8,2643.5,0.7839]
[1739768616813,3.40244,2645.2,2643.5,0.7839]
[1739768617013,0.792,2645.4,2644.8,3.78095]
[1739768617230,0.1201088,2645.1,2643.5,0.7839]
[1739768617549,0.57,2645.5,2645.4,3.78014]
[1739768617759,0.8317,2646.1,2645.7,3.77968]
[1739768618074,0.569,2646.6,2644.8,3.781]
[1739768618276,0.569,2646.6,2645.9,0.55]
[1739768618277,3.96959,2646.6,2645.9,0.55]
[1739768618417,3.0,2646.5,2645.6,3.77984]
[1739768618746,0.8946291,2646.7,2645.8,3.77946]
[1739768619056,0.8946291,2646.7,2646.3,3.77882]
[1739768619213,0.11825628,2646.6,2646.5,4.32846]
[1739768620251,3.67792011,2647.7,2647.1,0.55]
[1739768620429,3.67792011,2647.7,2647.2,0.55]
[1739768620628,0.11881539,2647.6,2647.2,0.55]
[1739768620876,0.11881539,2647.6,2647.5,4.32714]
[1739768621082,0.11881539,2647.6,2647.5,0.55]
[1739768621370,3.3985,2648.3,2647.6,0.55]
[1739768621531,0.6319291,2648.4,2647.9,0.55]
[1739768621736,0.0679291,2648.4,2648.0,3.7763]
[1739768622050,0.0679291,2648.4,2648.3,4.326]
[1739768622734,0.1231491,2648.4,2648.3,4.326]
[1739768623053,0.1231491,2648.4,2648.3,0.55]
[1739768623242,0.1231491,2648.4,2648.3,3.776]
[1739768623557,0.1231491,2648.4,2648.2,3.77614]
[1739768623719,0.1231491,2648.4,2648.3,0.55]
[1739768623919,0.005,2648.4,2648.3,4.326]
[1739768624232,0.005,2648.4,2648.3,5.136214]
[1739768624643,0.005,2648.4,2648.3,4.326]
[1739768626474,0.11812883,2648.9,2648.8,4.32529]
[1739768627760,0.0629291,2649.8,2649.4,0.55]
[1739768627920,0.0629291,2649.8,2649.5,3.77418]
[1739768628255,0.0629291,2649.8,2648.4,6.77575]
[1739768628256,0.0629291,2649.8,2649.0,0.55]
[1739768628457,3.4594291,2649.8,2648.0,3.77639]
[1739768628621,3.39662,2649.7,2647.9,3.77646]
[1739768628826,0.11809554,2649.7,2649.5,3.77426]
[1739768629163,0.11809554,2649.7,2649.5,3.77429]
[1739768629661,0.11809554,2649.7,2649.6,4.32415]
[1739768630023,0.11809554,2649.7,2648.5,3.0]
[1739768630223,3.39692,2649.5,2648.8,3.7752]
[1739768630428,0.11809554,2649.7,2649.2,3.77462]
[1739768630727,0.11809554,2649.7,2649.5,4.32425]
[1739768630924,0.11809554,2649.7,2649.5,0.55]
[1739768631131,0.11809554,2649.7,2649.6,3.77415]
[1739768631638,0.11809554,2649.7,2649.4,0.55]
[1739768632054,0.11809554,2649.7,2649.4,3.77431]
[1739768632438,0.11809554,2649.7,2648.6,0.3]
[1739768632639,3.39682,2649.6,2649.1,0.55]
[1739768632955,0.11809554,2649.7,2648.6,0.3]
[1739768633127,0.11809554,2649.6,2649.3,3.77452]
[1739768633467,0.11809554,2649.6,2649.1,3.77483]
[1739768633669,0.11809554,2649.6,2649.2,3.77462]
[1739768633996,0.11809554,2649.6,2649.5,4.32429]
[1739768634785,0.11809554,2649.6,2649.5,0.55]
[1739768634931,0.11809554,2649.5,2649.4,3.77433]
[1739768635127,0.11809554,2649.5,2649.4,4.32433]
[1739768636180,0.11991214,2649.5,2649.4,4.32433]
[1739768636724,0.11991214,2649.5,2649.4,7.32433]
[1739768637525,0.11991214,2649.5,2649.4,8.51564]
[1739768637739,0.11991214,2649.5,2649.4,4.32433]
[1739768637943,0.11991214,2649.5,2649.4,0.55]
[1739768638143,5.63466187,2649.6,2649.5,4.32429]
[1739768638680,5.63466187,2649.5,2649.2,3.77471]
[1739768638887,5.63466187,2649.5,2649.4,3.77443]
[1739768639055,5.63466187,2649.5,2649.4,4.32443]
[1739768639256,0.0629291,2650.9,2649.5,1.3324]
[1739768639456,0.0298681,2651.4,2650.8,3.77244]
[1739768640150,0.0298681,2651.4,2651.3,3.77173]
[1739768640552,0.0298681,2651.4,2650.6,3.0]
[1739768640748,0.14790375,2651.4,2651.3,3.77173]
[1739768641560,0.14790375,2651.4,2651.3,4.32173]
[1739768642175,3.77e-06,2651.8,2651.7,4.32116]
[1739768642374,3.77e-06,2651.8,2651.7,9.33886782]
[1739768642591,3.77006,2652.5,2651.6,3.77123]
[1739768642886,3.77006,2652.5,2651.8,3.77099]
[1739768643107,0.7702,2652.7,2651.4,3.55]
[1739768643264,4.53936,2653.2,2652.4,3.77013]
[1739768643584,0.7702,2653.2,2651.5,0.99001078]
[1739768643745,3.77077,2652.0,2651.3,0.7824]
[1739768643953,0.7702,2653.2,2651.9,3.77083]
[1739768644183,0.7702,2653.2,2651.4,0.55]
[1739768644184,3.76917,2653.1,2651.4,0.55]
[1739768644385,3.76917,2653.1,2651.3,0.7824]
[1739768644590,3.76988,2652.6,2651.9,3.77086]
[1739768644882,3.76997,2652.6,2651.9,3.77082]
[1739768645085,3.76997,2652.6,2651.9,3.77086]
[1739768645291,3.77048,2652.2,2651.6,3.77126]
[1739768645495,3.82347537,2652.0,2651.4,0.55]
[1739768645794,3.82347537,2652.0,2651.7,3.77115]
[1739768645968,3.82347537,2652.0,2651.9,2.0]
[1739768646169,3.82347537,2652.0,2651.9,0.42657184]
[1739768647091,3.82347537,2652.0,2651.9,4.19745184]
[1739768647460,3.82347537,2652.0,2651.9,0.42657184]
[1739768647857,7.59420537,2652.0,2651.9,0.42657184]
[1739768648162,7.59420537,2652.0,2651.9,1.84e-06]
[1739768648717,3.77073,2652.0,2651.9,1.84e-06]
[1739768648856,4.29873,2652.0,2651.9,1.84e-06]
[1739768649169,3.77073,2652.0,2651.9,1.84e-06]
[1739768649679,4.04546671,2652.0,2651.9,1.84e-06]
[1739768649856,0.39951941,2652.0,2651.9,1.84e-06]
[1739768650377,4.17024941,2652.0,2651.9,1.84e-06]
[1739768650763,3.8955127,2652.0,2651.9,1.84e-06]
[1739768651099,0.1247827,2652.0,2651.9,1.84e-06]
[1739768651467,3.77034,2652.3,2651.9,1.84e-06]